fUSD/lending_fUSD_20250502
["ID","MTS","AMOUNT","RATE_DAILY","PERIOD"]
[359654408,1746222644823,-450.0,0.00019713,2]
[359654409,1746222644832,-1056.32,0.00019713,2]
[359654410,1746222644842,-15993.44,0.00019713,2]
[359654411,1746222644852,-450.0,0.00019713,2]
[359654412,1746222644861,-716.74,0.00019713,2]
[359654413,1746222644871,-450.0,0.00019713,2]
[359654414,1746222644881,-575.35,0.00019713,2]
[359654415,1746222644891,-2204.73,0.00019713,2]
[359654416,1746222644901,-450.0,0.00019713,2]
[359654417,1746222644911,-565.5,0.00019713,2]
[359654418,1746222644920,-450.0,0.00019713,2]
[359654419,1746222644930,-711.19,0.00019713,2]
[359654420,1746222644939,-450.0,0.00019713,2]
[359654421,1746222644948,-522.59,0.00019713,2]
[359654422,1746222644958,-301.18044399,0.00019713,2]
[359654423,1746222644967,-3244.23,0.00019713,2]
[359654424,1746222644977,-450.0,0.00019713,2]
[359654425,1746222644986,-450.0,0.00019713,2]
[359654426,1746222644995,-523.26,0.00019713,2]
[359654427,1746222645004,-907.99,0.00019713,2]
[359654428,1746222645013,-793.55,0.00019713,2]
[359654429,1746222645023,-450.0,0.00019713,2]
[359654430,1746222645034,-450.0,0.00019713,2]
[359654431,1746222645044,-593.28,0.00019713,2]
[359654432,1746222645053,-450.0,0.00019713,2]
[359654433,1746222645061,-450.0,0.00019714,2]
[359654434,1746222645069,-450.0,0.00019714,2]
[359654435,1746222645078,-450.0,0.00019714,2]
[359654436,1746222645087,-500.0,0.00019716,2]
[359654437,1746222645101,-150.38905316,0.00019716,2]
[359654438,1746222645110,-500.0,0.00019716,2]
[359654439,1746222645121,-441.0,0.00019716,2]
[359654440,1746222645131,-500.0,0.00019716,2]
[359654441,1746222645143,-500.0,0.00019716,2]
[359654442,1746222645152,-500.0,0.00019716,2]
[359654443,1746222645162,-500.0,0.00019716,2]
[359654444,1746222645172,-500.0,0.00019716,2]
[359654445,1746222645182,-500.0,0.00019716,2]
[359654446,1746222645191,-155.27013893,0.00019716,2]
[359654447,1746222645201,-500.0,0.00019716,2]
[359654448,1746222645210,-437.0,0.00019716,2]
[359654449,1746222645219,-151.09399251,0.00019716,2]
[359654450,1746222645228,-150.96083992,0.00019716,2]
[359654451,1746222645237,-150.0,0.00019716,2]
[359654452,1746222645247,-150.79274051,0.00019716,2]
[359654453,1746222645256,-154.54925283,0.00019716,2]
[359654454,1746222645266,-500.0,0.00019716,2]
[359654455,1746222645276,-150.0,0.00019716,2]
[359654456,1746222645285,-500.0,0.00019716,2]
[359654457,1746222645294,-150.97981124,0.00019721,2]
[359654458,1746222645304,-500.0,0.00019721,2]
[359654459,1746222645313,-150.0,0.00019721,2]
[359654460,1746222645322,-362.50953567,0.00019724,2]
[359654461,1746222645332,-12500.0,0.00019768,2]
[359654462,1746222645341,-505.12152298,0.00019773,2]
[359654463,1746222645350,-500.0,0.00019773,2]
[359654464,1746222645359,-500.0,0.00019773,2]
[359654465,1746222645369,-500.0,0.00019773,2]
[359654466,1746222645378,-515.34803,0.00019773,2]
[359654467,1746222645387,-162.15598987,0.00019773,2]
[359654468,1746222645396,-500.0,0.00019773,2]
[359654469,1746222645405,-368.87036061,0.00019773,2]
[359654470,1746222645414,-500.0,0.00019773,2]
[359654471,1746222645423,-500.0,0.00019773,2]
[359654472,1746222645432,-500.0,0.00019773,2]
[359654473,1746222645442,-500.0,0.00019773,2]
[359654474,1746222645451,-500.0,0.00019773,2]
[359654475,1746222645460,-500.0,0.00019773,2]
[359654476,1746222645470,-500.0,0.00019773,2]
[359654477,1746222645479,-12500.0,0.00019777,2]
[359654478,1746222645488,-12500.0,0.00019786,2]
[359654479,1746222645497,-12500.0,0.00019794,2]
[359654480,1746222645506,-992.8407002,0.00019799,2]
[359654481,1746222645514,-155.96257902,0.000198,2]
[359654482,1746222645523,-12500.0,0.00019803,2]
[359654483,1746222645531,-296.50466061,0.0001981,2]
[359654484,1746222645539,-12500.0,0.00019812,2]
[359654485,1746222645548,-12500.0,0.00019821,2]
[359654486,1746222645557,-12500.0,0.0001983,2]
[359654487,1746222645567,-500.0,0.00019838,2]
[359654488,1746222645576,-12500.0,0.00019838,2]
[359654489,1746222645585,-2000.0,0.00019839,2]
[359654490,1746222645594,-200.0,0.00019839,2]
[359654491,1746222645604,-500.0,0.0001984,2]
[359654492,1746222645613,-2000.0,0.0001984,2]
[359654493,1746222645623,-2000.0,0.0001984,2]
[359654494,1746222645633,-200.0,0.0001984,2]
[359654495,1746222645642,-12500.0,0.00019847,2]
[359654496,1746222645651,-12500.0,0.00019856,2]
[359654497,1746222645661,-151.0,0.00019863,2]
[359654498,1746222645671,-151.0,0.00019864,2]
[359654499,1746222645681,-151.0,0.00019864,2]
[359654500,1746222645694,-151.0,0.00019865,2]
[359654501,1746222645703,-12500.0,0.00019865,2]
[359654502,1746222645713,-151.0,0.00019865,2]
[359654503,1746222645722,-12500.0,0.00019874,2]
[359654504,1746222645732,-12500.0,0.00019882,2]
[359654505,1746222645742,-165.7836071,0.00019886,2]
[359654506,1746222645752,-184.43217753,0.00019888,2]
[359654507,1746222645762,-233.19087666,0.00019888,2]
[359654508,1746222645773,-233.19087662,0.0001989,2]
[359654509,1746222645783,-165.78360708,0.00019891,2]
[359654510,1746222645793,-12500.0,0.00019891,2]
[359654511,1746222645802,-233.19087662,0.00019892,2]
[359654512,1746222645811,-184.43217753,0.00019894,2]
[359654513,1746222645821,-233.19087662,0.00019894,2]
[359654514,1746222645830,-165.78360708,0.00019895,2]
[359654515,1746222645839,-233.19087662,0.00019896,2]
[359654516,1746222645848,-233.19087662,0.00019898,2]
[359654517,1746222645857,-184.43217753,0.000199,2]
[359654518,1746222645867,-593.72698697,0.000199,2]
[359654519,1746222645876,-12500.0,0.000199,2]
[359654520,1746222645885,-233.19087662,0.000199,2]
[359654521,1746222645893,-2743.91594593,0.000199,2]
[359654522,1746222645902,-165.78360708,0.000199,2]
[359654523,1746222645912,-1310.89372494,0.000199,2]
[359654524,1746222645921,-180.12891608,0.000199,3]
[359654525,1746222645931,-156.63736674,0.000199,2]
[359654526,1746222645940,-495.71971184,0.000199,2]
[359654527,1746222645950,-46660.9550745,0.000199,2]
[359654528,1746222645960,-500.0,0.00019918,2]
[359654529,1746222645969,-151.0,0.00019943,2]
[359654530,1746222645979,-3695.479,0.00019949,2]
[359654531,1746222645989,-245.714,0.00019949,2]
[359654532,1746222645999,-500.0,0.00019949,2]
[359654533,1746222646008,-924.0,0.00019949,2]
[359654534,1746222646018,-1391.397,0.00019949,2]
[359654535,1746222646028,-797.0,0.00019949,2]
[359654536,1746222646038,-1231.202,0.00019949,2]
[359654537,1746222646049,-2071.0,0.00019949,2]
[359654538,1746222646058,-914.0,0.00019949,2]
[359654539,1746222646068,-1449.0,0.00019949,2]
[359654540,1746222646078,-581.0,0.00019949,2]
[359654541,1746222646087,-550.0,0.00019949,2]
[359654542,1746222646100,-4006.0,0.00019949,2]
[359654543,1746222646109,-878.0,0.00019949,2]
[359654544,1746222646119,-6753.0,0.00019949,2]
[359654545,1746222646128,-153.0,0.00019949,2]
[359654546,1746222646138,-207.4,0.00019953,2]
[359654547,1746222646148,-151.0,0.00019954,2]
[359654548,1746222646158,-151.0,0.00019954,2]
[359654549,1746222646167,-668.65185757,0.00019954,2]
[359654550,1746222646177,-151.0,0.00019954,2]
[359654551,1746222646187,-500.0,0.00019973,2]
[359654552,1746222646196,-162.40954813,0.00019973,2]
[359654553,1746222646206,-501.47327578,0.00019973,2]
[359654554,1746222646215,-24257.0,0.00019973,2]
[359654555,1746222646225,-165.99958587,0.00019973,2]
[359654556,1746222646234,-500.0,0.00019973,2]
[359654557,1746222646244,-500.0,0.00019973,2]
[359654558,1746222646254,-500.0,0.00019973,2]
[359654559,1746222646263,-500.0,0.00019973,2]
[359654560,1746222646273,-500.0,0.00019973,2]
[359654561,1746222646282,-500.0,0.00019973,2]
[359654562,1746222646291,-500.0,0.00019973,2]
[359654563,1746222646301,-243.25265261,0.00019973,2]
[359654564,1746222646311,-152.56461415,0.00019973,2]
[359654565,1746222646320,-302.52572163,0.00019973,2]
[359654566,1746222646330,-920.0,0.00019973,2]
[359654567,1746222646339,-538.7932649,0.00019973,2]
[359654568,1746222646348,-160.1305096,0.00019973,2]
[359654569,1746222646357,-501.74607688,0.00019973,2]
[359654570,1746222646366,-517.08214642,0.00019973,2]
[359654571,1746222646375,-500.0,0.00019973,2]
[359654572,1746222646384,-500.0,0.00019973,2]
[359654573,1746222646393,-500.0,0.00019973,2]
[359654574,1746222646404,-500.0,0.00019973,2]
[359654575,1746222646413,-500.0,0.00019973,2]
[359654576,1746222646423,-505.11388319,0.00019973,2]
[359654577,1746222646432,-1074.92705239,0.00019977,2]
[359654578,1746222646441,-450.0,0.00019986,2]
[359654579,1746222646452,-450.0,0.00019986,2]
[359654580,1746222646461,-450.0,0.00019986,2]
[359654581,1746222646470,-450.0,0.00019986,2]
[359654582,1746222646480,-553.47632,0.00019986,2]
[359654583,1746222646488,-450.0,0.00019986,2]
[359654584,1746222646497,-450.0,0.00019986,2]
[359654585,1746222646506,-450.0,0.00019986,2]
[359654586,1746222646514,-450.0,0.00019986,2]
[359654587,1746222646521,-450.0,0.00019986,2]
[359654588,1746222646529,-894.130531,0.00019986,2]
[359654589,1746222646536,-450.0,0.00019986,2]
[359654590,1746222646543,-648.81,0.00019986,2]
[359654591,1746222646551,-454.69,0.00019986,2]
[359654592,1746222646559,-460.60661297,0.00019986,2]
[359654593,1746222646566,-450.0,0.00019986,2]
[359654594,1746222646574,-450.0,0.00019986,2]
[359654595,1746222646581,-450.0,0.00019986,2]
[359654596,1746222646589,-450.0,0.00019986,2]
[359654597,1746222646595,-450.0,0.00019986,2]
[359654598,1746222646603,-450.0,0.00019986,2]
[359654599,1746222646610,-450.0,0.00019986,2]
[359654600,1746222646617,-450.0,0.00019986,2]
[359654601,1746222646625,-450.0,0.00019986,2]
[359654602,1746222646633,-450.0,0.00019986,2]
[359654603,1746222646642,-450.0,0.00019986,2]
[359654604,1746222646649,-450.0,0.00019986,2]
[359654605,1746222646658,-450.0,0.00019986,2]
[359654606,1746222646665,-450.0,0.00019986,2]
[359654607,1746222646673,-359.32732009,0.00019986,2]
[359654608,1746222646681,-450.0,0.00019986,2]
[359654609,1746222646689,-450.0,0.00019986,2]
[359654610,1746222646697,-450.0,0.00019986,2]
[359654611,1746222646705,-450.0,0.00019986,2]
[359654612,1746222646714,-450.0,0.00019986,2]
[359654613,1746222646723,-463.43,0.00019986,2]
[359654614,1746222646730,-450.0,0.00019986,2]
[359654615,1746222646737,-450.0,0.00019986,2]
[359654616,1746222646746,-450.0,0.00019986,2]
[359654617,1746222646948,-505.29,0.00019986,2]
[359654618,1746222646958,-450.0,0.00019986,2]
[359654619,1746222646967,-450.0,0.00019986,2]
[359654620,1746222646976,-7595.16,0.00019986,2]
[359654621,1746222646985,-450.0,0.00019986,2]
[359654622,1746222646994,-450.0,0.00019986,2]
[359654623,1746222647003,-450.0,0.00019986,2]
[359654624,1746222647012,-450.0,0.00019986,2]
[359654625,1746222647021,-450.0,0.00019986,2]
[359654626,1746222647031,-450.0,0.00019986,2]
[359654627,1746222647040,-526.42,0.00019986,2]
[359654628,1746222647049,-450.0,0.00019986,2]
[359654629,1746222647058,-450.0,0.00019986,2]
[359654630,1746222647067,-5841.3,0.00019986,2]
[359654631,1746222647076,-450.0,0.00019986,2]
[359654632,1746222647085,-463.08,0.00019986,2]
[359654633,1746222647099,-450.0,0.00019986,2]
[359654634,1746222647109,-234.39097713,0.00019986,2]
[359654635,1746222647118,-186.59084408,0.00019986,2]
[359654636,1746222647127,-450.0,0.00019986,2]
[359654637,1746222647136,-450.0,0.00019986,2]
[359654638,1746222647145,-133178.2125458,0.00019986,2]
[359654639,1746222647154,-450.0,0.00019986,2]
[359654640,1746222647163,-450.0,0.00019986,2]
[359654641,1746222647174,-450.0,0.00019986,2]
[359654642,1746222647184,-450.0,0.00019986,2]
[359654643,1746222647194,-450.0,0.00019986,2]
[359654644,1746222647204,-450.0,0.00019986,2]
[359654645,1746222647214,-450.0,0.00019986,2]
[359654646,1746222647224,-450.0,0.00019986,2]
[359654647,1746222647233,-450.0,0.00019986,2]
[359654648,1746222647243,-513.16,0.00019986,2]
[359654649,1746222647253,-450.0,0.00019986,2]
[359654650,1746222647263,-450.0,0.00019986,2]
[359654651,1746222647272,-450.0,0.00019986,2]
[359654652,1746222647282,-450.0,0.00019986,2]
[359654653,1746222647292,-450.0,0.00019986,2]
[359654654,1746222647302,-6077.5430675,0.00019986,2]
[359654655,1746222647311,-450.0,0.00019986,2]
[359654656,1746222647321,-450.0,0.00019986,2]
[359654657,1746222647331,-601.99,0.00019986,2]
[359654658,1746222647340,-1238.85,0.00019986,2]
[359654659,1746222647349,-450.0,0.00019986,2]
[359654660,1746222647359,-699.9,0.00019986,2]
[359654661,1746222647369,-450.0,0.00019986,2]
[359654662,1746222647378,-450.0,0.00019986,2]
[359654663,1746222647388,-450.0,0.00019986,2]
[359654664,1746222647398,-450.0,0.00019986,2]
[359654665,1746222647407,-2282.54,0.00019986,2]
[359654666,1746222647417,-450.0,0.00019986,2]
[359654667,1746222647427,-492.25,0.00019986,2]
[359654668,1746222647437,-450.0,0.00019986,2]
[359654669,1746222647447,-450.0,0.00019986,2]
[359654670,1746222647456,-504.2,0.00019986,2]
[359654671,1746222647466,-450.0,0.00019986,2]
[359654672,1746222647476,-450.0,0.00019986,2]
[359654673,1746222647485,-450.0,0.00019986,2]
[359654674,1746222647495,-450.0,0.00019986,2]
[359654675,1746222647505,-1175.23,0.00019986,2]
[359654676,1746222647515,-1017.9,0.00019986,2]
[359654677,1746222647525,-450.0,0.00019986,2]
[359654678,1746222647535,-450.0,0.00019986,2]
[359654679,1746222647544,-450.0,0.00019986,2]
[359654680,1746222647554,-450.0,0.00019986,2]
[359654681,1746222647563,-534.32,0.00019986,2]
[359654682,1746222647573,-450.0,0.00019986,2]
[359654683,1746222647582,-450.0,0.00019986,2]
[359654684,1746222647592,-464.33,0.00019986,2]
[359654685,1746222647602,-15442.4614198,0.00019986,2]
[359654686,1746222647611,-450.0,0.00019986,2]
[359654687,1746222647621,-1561.02,0.00019986,2]
[359654688,1746222647631,-450.0,0.00019986,2]
[359654689,1746222647641,-450.0,0.00019986,2]
[359654690,1746222647650,-450.0,0.00019986,2]
[359654691,1746222647660,-450.0,0.00019986,2]
[359654692,1746222647670,-529.81,0.00019986,2]
[359654693,1746222647680,-450.0,0.00019986,2]
[359654694,1746222647690,-450.0,0.00019986,2]
[359654695,1746222647701,-47295.4203869,0.00019986,2]
[359654696,1746222647711,-1082.35,0.00019986,2]
[359654697,1746222647720,-450.0,0.00019986,2]
[359654698,1746222647730,-1612.23,0.00019986,2]
[359654699,1746222647740,-450.0,0.00019986,2]
[359654700,1746222647750,-450.0,0.00019986,2]
[359654701,1746222647759,-450.0,0.00019986,2]
[359654702,1746222647769,-1607.61,0.00019986,2]
[359654703,1746222647778,-1445.06,0.00019986,2]
[359654704,1746222647789,-1722.0,0.00019987,2]
[359654705,1746222647799,-450.0,0.00019987,2]
[359654706,1746222647809,-518.05,0.00019987,2]
[359654707,1746222647818,-450.0,0.00019987,2]
[359654708,1746222647828,-450.0,0.00019987,2]
[359654709,1746222647838,-450.0,0.00019987,2]
[359654710,1746222647847,-450.0,0.00019987,2]
[359654711,1746222647857,-450.0,0.00019987,2]
[359654712,1746222647867,-450.0,0.00019987,2]
[359654713,1746222647876,-454.09,0.00019987,2]
[359654714,1746222647886,-634.62,0.00019987,2]
[359654715,1746222647895,-508.02824913,0.00019987,2]
[359654716,1746222647905,-450.0,0.00019987,2]
[359654717,1746222647914,-450.0,0.00019987,2]
[359654718,1746222647923,-450.0,0.00019987,2]
[359654719,1746222647933,-450.0,0.00019987,2]
[359654720,1746222647943,-450.0,0.00019987,2]
[359654721,1746222647952,-450.0,0.00019987,2]
[359654722,1746222647961,-450.0,0.00019987,2]
[359654723,1746222647972,-450.0,0.00019987,2]
[359654724,1746222647982,-450.0,0.00019987,2]
[359654725,1746222647992,-450.0,0.00019987,2]
[359654726,1746222648001,-450.0,0.00019987,2]
[359654727,1746222648011,-450.0,0.00019987,2]
[359654728,1746222648021,-450.0,0.00019987,2]
[359654729,1746222648031,-450.0,0.00019987,2]
[359654730,1746222648041,-450.0,0.00019987,2]
[359654731,1746222648051,-495.22,0.00019987,2]
[359654732,1746222648061,-450.0,0.00019987,2]
[359654733,1746222648071,-450.0,0.00019987,2]
[359654734,1746222648081,-498.38,0.00019987,2]
[359654735,1746222648091,-584.12,0.00019987,2]
[359654736,1746222648104,-450.0,0.00019987,2]
[359654737,1746222648115,-450.0,0.00019987,2]
[359654738,1746222648125,-450.0,0.00019987,2]
[359654739,1746222648135,-450.0,0.00019987,2]
[359654740,1746222648146,-450.0,0.00019987,2]
[359654741,1746222648157,-636.21,0.00019987,2]
[359654742,1746222648167,-450.0,0.00019987,2]
[359654743,1746222648179,-212.43129338,0.00019987,2]
[359654744,1746222648190,-450.0,0.00019987,2]
[359654745,1746222648200,-587.11,0.00019987,2]
[359654746,1746222648211,-450.0,0.00019987,2]
[359654747,1746222648221,-450.0,0.00019987,2]
[359654748,1746222648231,-450.0,0.00019987,2]
[359654749,1746222648241,-450.0,0.00019987,2]
[359654750,1746222648250,-598.25,0.00019987,2]
[359654751,1746222648260,-450.0,0.00019987,2]
[359654752,1746222648270,-450.0,0.00019987,2]
[359654753,1746222648280,-450.0,0.00019987,2]
[359654754,1746222648290,-450.0,0.00019987,2]
[359654755,1746222648300,-450.0,0.00019987,2]
[359654756,1746222648309,-450.0,0.00019987,2]
[359654757,1746222648319,-716.2,0.00019987,2]
[359654758,1746222648328,-450.0,0.00019987,2]
[359654759,1746222648338,-450.0,0.00019987,2]
[359654760,1746222648348,-511.33,0.00019987,2]
[359654761,1746222648357,-450.0,0.00019987,2]
[359654762,1746222648367,-450.0,0.00019987,2]
[359654763,1746222648377,-450.0,0.00019987,2]
[359654764,1746222648386,-450.0,0.00019987,2]
[359654765,1746222648396,-450.0,0.00019987,2]
[359654766,1746222648406,-523.06,0.00019987,2]
[359654767,1746222648417,-450.0,0.00019987,2]
[359654768,1746222648427,-450.0,0.00019987,2]
[359654769,1746222648437,-450.0,0.00019987,2]
[359654770,1746222648447,-450.0,0.00019987,2]
[359654771,1746222648457,-450.0,0.00019987,2]
[359654772,1746222648468,-450.0,0.00019987,2]
[359654773,1746222648479,-450.0,0.00019987,2]
[359654774,1746222648489,-608.79,0.00019987,2]
[359654775,1746222648500,-450.0,0.00019987,2]
[359654776,1746222648510,-450.0,0.00019987,2]
[359654777,1746222648521,-450.0,0.00019987,2]
[359654778,1746222648532,-450.0,0.00019987,2]
[359654779,1746222648542,-450.0,0.00019987,2]
[359654780,1746222648553,-450.0,0.00019987,2]
[359654781,1746222648563,-845.43,0.00019987,2]
[359654782,1746222648573,-472.31764425,0.00019987,2]
[359654783,1746222648583,-800.49,0.00019987,2]
[359654784,1746222648594,-450.0,0.00019987,2]
[359654785,1746222648604,-556.7,0.00019987,2]
[359654786,1746222648614,-450.0,0.00019987,2]
[359654787,1746222648623,-450.0,0.00019987,2]
[359654788,1746222648633,-450.0,0.00019987,2]
[359654789,1746222648643,-1086.67,0.00019987,2]
[359654790,1746222648653,-205.70456391,0.00019987,2]
[359654791,1746222648663,-450.0,0.00019987,2]
[359654792,1746222648673,-450.0,0.00019987,2]
[359654793,1746222648683,-450.0,0.00019987,2]
[359654794,1746222648694,-450.0,0.00019987,2]
[359654795,1746222648705,-450.0,0.00019987,2]
[359654796,1746222648715,-1010.91,0.00019987,2]
[359654797,1746222648725,-580.14,0.00019987,2]
[359654798,1746222648735,-470.26,0.00019987,2]
[359654799,1746222648746,-450.0,0.00019987,2]
[359654800,1746222648755,-450.0,0.00019987,2]
[359654801,1746222648765,-592.95,0.00019987,2]
[359654802,1746222648775,-450.0,0.00019987,2]
[359654803,1746222648784,-450.0,0.00019987,2]
[359654804,1746222648794,-450.0,0.00019987,2]
[359654805,1746222648803,-300.0,0.00019987,2]
[359654806,1746222648812,-450.0,0.00019987,2]
[359654807,1746222648821,-1490.27,0.00019987,2]
[359654808,1746222648831,-509.46,0.00019987,2]
[359654809,1746222648840,-450.0,0.00019987,2]
[359654810,1746222648849,-450.0,0.00019987,2]
[359654811,1746222648859,-450.0,0.00019987,2]
[359654812,1746222648869,-450.0,0.00019987,2]
[359654813,1746222648878,-450.0,0.00019987,2]
[359654814,1746222648888,-735.66,0.00019987,2]
[359654815,1746222648897,-450.0,0.00019987,2]
[359654816,1746222648907,-562.37,0.00019987,2]
[359654817,1746222648916,-839.09,0.00019987,2]
[359654818,1746222648926,-450.0,0.00019987,2]
[359654819,1746222648936,-450.0,0.00019987,2]
[359654820,1746222648946,-450.0,0.00019987,2]
[359654821,1746222648955,-450.0,0.00019987,2]
[359654822,1746222648964,-450.0,0.00019987,2]
[359654823,1746222648973,-520.81,0.00019987,2]
[359654824,1746222648982,-450.0,0.00019987,2]
[359654825,1746222648991,-450.0,0.00019987,2]
[359654826,1746222649001,-450.0,0.00019987,2]
[359654827,1746222649011,-450.0,0.00019987,2]
[359654828,1746222649020,-450.0,0.00019987,2]
[359654829,1746222649029,-450.0,0.00019987,2]
[359654830,1746222649039,-563.16,0.00019987,2]
[359654831,1746222649048,-450.0,0.00019987,2]
[359654832,1746222649058,-450.0,0.00019987,2]
[359654833,1746222649067,-450.0,0.00019987,2]
[359654834,1746222649076,-450.0,0.00019987,2]
[359654835,1746222649086,-507.24,0.00019987,2]
[359654836,1746222649098,-720.83,0.00019987,2]
[359654837,1746222649107,-450.0,0.00019987,2]
[359654838,1746222649116,-424.60009718,0.00019987,2]
[359654839,1746222649126,-450.0,0.00019987,2]
[359654840,1746222649136,-450.0,0.00019987,2]
[359654841,1746222649146,-450.0,0.00019987,2]
[359654842,1746222649155,-450.0,0.00019987,2]
[359654843,1746222649164,-450.0,0.00019987,2]
[359654844,1746222649175,-2540.79,0.00019987,2]
[359654845,1746222649185,-729.63,0.00019987,2]
[359654846,1746222649194,-603.86,0.00019987,2]
[359654847,1746222649204,-450.0,0.00019987,2]
[359654848,1746222649213,-450.0,0.00019987,2]
[359654849,1746222649224,-450.0,0.00019987,2]
[359654850,1746222649234,-751.47,0.00019987,2]
[359654851,1746222649244,-450.0,0.00019987,2]
[359654852,1746222649253,-450.0,0.00019987,2]
[359654853,1746222649263,-1759.53,0.00019987,2]
[359654854,1746222649274,-450.0,0.00019987,2]
[359654855,1746222649285,-450.0,0.00019987,2]
[359654856,1746222649294,-462.55,0.00019987,2]
[359654857,1746222649304,-540.15711062,0.00019987,2]
[359654858,1746222649382,-1056.82,0.00019987,2]
[359654859,1746222649393,-644.02,0.00019987,2]
[359654860,1746222649403,-604.08,0.00019987,2]
[359654861,1746222649412,-450.0,0.00019987,2]
[359654862,1746222649422,-450.0,0.00019987,2]
[359654863,1746222649431,-506.49,0.00019987,2]
[359654864,1746222649441,-450.0,0.00019987,2]
[359654865,1746222649450,-450.0,0.00019987,2]
[359654866,1746222649460,-450.0,0.00019987,2]
[359654867,1746222649469,-1107.44,0.00019987,2]
[359654868,1746222649478,-1187.28,0.00019987,2]
[359654869,1746222649488,-450.0,0.00019987,2]
[359654870,1746222649497,-450.0,0.00019987,2]
[359654871,1746222649507,-779.81,0.00019987,2]
[359654872,1746222649516,-450.0,0.00019987,2]
[359654873,1746222649527,-450.0,0.00019987,2]
[359654874,1746222649537,-450.0,0.00019987,2]
[359654875,1746222649546,-450.0,0.00019987,2]
[359654876,1746222649556,-450.0,0.00019987,2]
[359654877,1746222649565,-450.0,0.00019987,2]
[359654878,1746222649575,-450.0,0.00019987,2]
[359654879,1746222649585,-450.0,0.00019987,2]
[359654880,1746222649595,-450.0,0.00019987,2]
[359654881,1746222649604,-521.98,0.00019987,2]
[359654882,1746222649613,-521.54,0.00019987,2]
[359654883,1746222649623,-450.0,0.00019987,2]
[359654884,1746222649633,-450.0,0.00019987,2]
[359654885,1746222649643,-380.38508656,0.00019987,2]
[359654886,1746222649652,-932.82,0.00019987,2]
[359654887,1746222649662,-450.0,0.00019987,2]
[359654888,1746222649672,-450.0,0.00019987,2]
[359654889,1746222649682,-790.69,0.00019987,2]
[359654890,1746222649692,-361.68422331,0.00019987,2]
[359654891,1746222649702,-450.0,0.00019987,2]
[359654892,1746222649712,-453.35,0.00019987,2]
[359654893,1746222649722,-858.37,0.00019987,2]
[359654894,1746222649732,-1225.44,0.00019987,2]
[359654895,1746222649742,-483.39,0.00019987,2]
[359654896,1746222649752,-450.0,0.00019987,2]
[359654897,1746222649761,-457.15,0.00019987,2]
[359654898,1746222649771,-450.0,0.00019987,2]
[359654899,1746222649781,-450.0,0.00019987,2]
[359654900,1746222649791,-450.0,0.00019987,2]
[359654901,1746222649800,-168.44821842,0.00019987,2]
[359654902,1746222649809,-450.0,0.00019987,2]
[359654903,1746222649819,-568.36,0.00019987,2]
[359654904,1746222649829,-765.86,0.00019987,2]
[359654905,1746222649838,-3821.3,0.00019987,2]
[359654906,1746222649848,-615.77,0.00019987,2]
[359654907,1746222649858,-911.62,0.00019987,2]